[Event "Late-Titled-Tuesday-Blitz-May-07-2024"]
[Site "Chess.com"]
[Date "2024.05.07"]
[Round "8"]
[White "ChessWarrior7197"]
[Black "TigrVShlyape"]
[Result "1-0"]
[WhiteElo "3147"]
[BlackElo "2965"]
[TimeControl "180+1"]
[EndTime "15:29:02 PDT"]
[Termination "ChessWarrior7197 won on time"]

1. e4 {[%clk 0:03:00.9]} 1... e5 {[%clk 0:02:59.3]} 2. Bc4 {[%clk 0:02:59.8]}
2... Nf6 {[%clk 0:02:55.3]} 3. Nc3 {[%clk 0:03:00.5]} 3... c6 {[%clk 0:02:39.4]}
4. Nf3 {[%clk 0:03:00.1]} 4... d5 {[%clk 0:02:31.8]} 5. Bb3 {[%clk 0:03:00.6]}
5... Bg4 {[%clk 0:02:17.7]} 6. h3 {[%clk 0:02:57.4]} 6... Bxf3 {[%clk
0:02:14.8]} 7. Qxf3 {[%clk 0:02:57.6]} 7... d4 {[%clk 0:02:15.1]} 8. Ne2 {[%clk
0:02:56.2]} 8... Nbd7 {[%clk 0:02:13.3]} 9. d3 {[%clk 0:02:56.3]} 9... Nc5
{[%clk 0:02:12.4]} 10. Qg3 {[%clk 0:02:53.7]} 10... Qd6 {[%clk 0:01:46.7]} 11.
O-O {[%clk 0:02:53.3]} 11... Nxb3 {[%clk 0:01:40.2]} 12. axb3 {[%clk 0:02:54.2]}
12... Nh5 {[%clk 0:01:07.7]} 13. Qh4 {[%clk 0:02:45.8]} 13... g6 {[%clk
0:01:05.9]} 14. f4 {[%clk 0:02:46.2]} 14... Be7 {[%clk 0:00:55.8]} 15. Qf2
{[%clk 0:02:46.6]} 15... f6 {[%clk 0:00:41.2]} 16. g4 {[%clk 0:02:36]} 16...
Nxf4 {[%clk 0:00:39.3]} 17. Nxf4 {[%clk 0:02:34.1]} 17... exf4 {[%clk
0:00:39.5]} 18. Bxf4 {[%clk 0:02:35]} 18... Qd7 {[%clk 0:00:35.6]} 19. Bh6
{[%clk 0:02:30]} 19... Rg8 {[%clk 0:00:31.3]} 20. Kh1 {[%clk 0:02:25.2]} 20...
b6 {[%clk 0:00:28.6]} 21. Bf4 {[%clk 0:02:18.2]} 21... c5 {[%clk 0:00:26.6]} 22.
Qf3 {[%clk 0:02:17.1]} 22... Qc6 {[%clk 0:00:26]} 23. Bg3 {[%clk 0:02:13.9]}
23... a5 {[%clk 0:00:24.4]} 24. Rae1 {[%clk 0:02:11.4]} 24... Kd7 {[%clk
0:00:20.9]} 25. c3 {[%clk 0:02:05.9]} 25... dxc3 {[%clk 0:00:19.1]} 26. bxc3
{[%clk 0:02:06.8]} 26... a4 {[%clk 0:00:16.2]} 27. bxa4 {[%clk 0:02:02.1]} 27...
Rxa4 {[%clk 0:00:16]} 28. Rb1 {[%clk 0:02:01.5]} 28... Rga8 {[%clk 0:00:14.7]}
29. g5 {[%clk 0:01:58.8]} 29... fxg5 {[%clk 0:00:10.2]} 30. Qg4+ {[%clk
0:01:59.2]} 30... Ke8 {[%clk 0:00:09.6]} 31. Be5 {[%clk 0:01:53.5]} 31... h5
{[%clk 0:00:08.4]} 32. Qf3 {[%clk 0:01:52.8]} 32... Qe6 {[%clk 0:00:08.7]} 33.
d4 {[%clk 0:01:52]} 33... cxd4 {[%clk 0:00:08]} 34. Bxd4 {[%clk 0:01:52.9]}
34... g4 {[%clk 0:00:07.1]} 35. Qf4 {[%clk 0:01:49.7]} 35... g5 {[%clk
0:00:05.7]} 36. Qe3 {[%clk 0:01:46.8]} 36... R8a6 {[%clk 0:00:04.6]} 37. Rb5
{[%clk 0:01:45.4]} 37... R4a5 {[%clk 0:00:04.6]} 38. Rbf5 {[%clk 0:01:44.3]}
38... Rxf5 {[%clk 0:00:04.1]} 39. Rxf5 {[%clk 0:01:45.2]} 39... Ra1+ {[%clk
0:00:03.5]} 40. Kg2 {[%clk 0:01:45.4]} 40... Ra2+ {[%clk 0:00:04]} 41. Kg1
{[%clk 0:01:45.3]} 41... Ra1+ {[%clk 0:00:04.3]} 42. Kg2 {[%clk 0:01:32]} 42...
Ra2+ {[%clk 0:00:04.6]} 43. Kf1 {[%clk 0:01:28.6]} 43... Ra1+ {[%clk 0:00:04.9]}
44. Kf2 {[%clk 0:01:18.8]} 44... Ra2+ {[%clk 0:00:05.2]} 45. Kg3 {[%clk
0:01:12.6]} 45... Bd6+ {[%clk 0:00:04.4]} 46. e5 {[%clk 0:01:13.2]} 46... Qxf5
{[%clk 0:00:03.5]} 47. exd6+ {[%clk 0:01:13.4]} 47... Kd7 {[%clk 0:00:03.9]} 48.
Qe7+ {[%clk 0:01:07.5]} 48... Kc6 {[%clk 0:00:04.3]} 49. Qc7+ {[%clk 0:01:06.7]}
49... Kd5 {[%clk 0:00:01.5]} 50. Qb7+ {[%clk 0:01:07]} 50... Kc4 {[%clk
0:00:00.1]} 51. Qc8+ {[%clk 0:00:50.4]} 51... Kd3 {[%clk 0:00:00.6]} 52. Qxf5+
{[%clk 0:00:50.7]} 1-0

[Event "Late-Titled-Tuesday-Blitz-May-07-2024"]
[Site "Chess.com"]
[Date "2024.05.07"]
[Round "8"]
[White "djano"]
[Black "Hasangatin_Ramil"]
[Result "0-1"]
[WhiteElo "2538"]
[BlackElo "2682"]
[TimeControl "180+1"]
[EndTime "15:29:02 PDT"]
[Termination "Hasangatin_Ramil won by resignation"]

1. e4 {[%clk 0:03:00.9]} 1... d5 {[%clk 0:02:54.8]} 2. exd5 {[%clk 0:02:59.7]}
2... Qxd5 {[%clk 0:02:55.7]} 3. Nf3 {[%clk 0:03:00.2]} 3... Nf6 {[%clk
0:02:53.8]} 4. Nc3 {[%clk 0:03:00.4]} 4... Qd6 {[%clk 0:02:52.8]} 5. Nb5 {[%clk
0:02:57]} 5... Qd8 {[%clk 0:02:52.4]} 6. d4 {[%clk 0:02:56.2]} 6... c6 {[%clk
0:02:52.6]} 7. Na3 {[%clk 0:02:56.4]} 7... Bg4 {[%clk 0:02:51.3]} 8. Be2 {[%clk
0:02:51.9]} 8... Nbd7 {[%clk 0:02:41.9]} 9. O-O {[%clk 0:02:50.7]} 9... Nb6
{[%clk 0:02:41]} 10. c3 {[%clk 0:02:43]} 10... e6 {[%clk 0:02:39]} 11. Nc4
{[%clk 0:02:39.5]} 11... Bxf3 {[%clk 0:02:36.5]} 12. gxf3 {[%clk 0:02:34.7]}
12... Nxc4 {[%clk 0:02:36.2]} 13. Bxc4 {[%clk 0:02:34.3]} 13... Bd6 {[%clk
0:02:36.8]} 14. f4 {[%clk 0:02:31.9]} 14... g6 {[%clk 0:02:36.7]} 15. Qf3 {[%clk
0:02:26.1]} 15... O-O {[%clk 0:02:36.1]} 16. f5 {[%clk 0:02:22]} 16... exf5
{[%clk 0:02:34.9]} 17. Bg5 {[%clk 0:02:19.2]} 17... Be7 {[%clk 0:02:34.2]} 18.
Rfe1 {[%clk 0:02:16.7]} 18... Nd5 {[%clk 0:02:34.2]} 19. Rxe7 {[%clk 0:02:10.9]}
19... Nxe7 {[%clk 0:02:33.4]} 20. Qe3 {[%clk 0:01:46.3]} 20... Nd5 {[%clk
0:02:24.4]} 21. Qg3 {[%clk 0:01:16.3]} 21... f6 {[%clk 0:02:22.5]} 22. Bh6
{[%clk 0:01:15.6]} 22... Re8 {[%clk 0:02:21.9]} 23. h4 {[%clk 0:01:14.1]} 23...
Kf7 {[%clk 0:02:02.6]} 24. Bb3 {[%clk 0:01:12.9]} 24... Qb8 {[%clk 0:01:54.5]}
25. Qf3 {[%clk 0:01:09.2]} 25... Re4 {[%clk 0:01:53.4]} 26. c4 {[%clk
0:00:58.6]} 26... Nb6 {[%clk 0:01:53.1]} 27. d5 {[%clk 0:00:57.4]} 27... c5
{[%clk 0:01:52.5]} 28. d6 {[%clk 0:00:52.3]} 28... Qxd6 {[%clk 0:01:50.1]} 29.
Rd1 {[%clk 0:00:52]} 29... Rd4 {[%clk 0:01:43.1]} 30. Qxb7+ {[%clk 0:00:51.3]}
30... Qd7 {[%clk 0:01:37.3]} 31. Qf3 {[%clk 0:00:31.2]} 31... Rxd1+ {[%clk
0:01:36.5]} 32. Bxd1 {[%clk 0:00:32.1]} 32... Re8 {[%clk 0:01:36.7]} 33. Be3
{[%clk 0:00:27.9]} 33... Re5 {[%clk 0:01:22.2]} 34. b4 {[%clk 0:00:24.1]} 34...
f4 {[%clk 0:01:09.8]} 35. Bxc5 {[%clk 0:00:23.9]} 35... Re1+ {[%clk 0:01:09.2]}
36. Kg2 {[%clk 0:00:23.3]} 36... Rxd1 {[%clk 0:01:06.8]} 37. Qxf4 {[%clk
0:00:21.4]} 37... Qb7+ {[%clk 0:01:02.1]} 38. f3 {[%clk 0:00:21.4]} 38... Qd7
{[%clk 0:01:00.7]} 39. Bf2 {[%clk 0:00:17.3]} 39... Rd2 {[%clk 0:00:54.3]} 40.
c5 {[%clk 0:00:16.6]} 40... Nc8 {[%clk 0:00:50.7]} 41. c6 {[%clk 0:00:15.4]}
41... Qd6 {[%clk 0:00:43.9]} 42. Qh6 {[%clk 0:00:12.8]} 42... Kg8 {[%clk
0:00:39.2]} 43. c7 {[%clk 0:00:13.3]} 43... Qd4 {[%clk 0:00:34.8]} 44. Kh3
{[%clk 0:00:02.4]} 44... Qxf2 {[%clk 0:00:32.3]} 0-1

[Event "Late-Titled-Tuesday-Blitz-May-07-2024"]
[Site "Chess.com"]
[Date "2024.05.07"]
[Round "8"]
[White "Redzishchess"]
[Black "Nechitaylo_Nikita"]
[Result "0-1"]
[WhiteElo "2495"]
[BlackElo "2360"]
[TimeControl "180+1"]
[EndTime "15:29:05 PDT"]
[Termination "Nechitaylo_Nikita won on time"]

1. Nf3 {[%clk 0:03:00.9]} 1... c5 {[%clk 0:03:00.1]} 2. g3 {[%clk 0:03:00.6]}
2... Nc6 {[%clk 0:03:00.1]} 3. Bg2 {[%clk 0:03:00.9]} 3... g6 {[%clk 0:03:00.9]}
4. O-O {[%clk 0:03:01]} 4... Bg7 {[%clk 0:03:01.7]} 5. c3 {[%clk 0:03:01.5]}
5... d5 {[%clk 0:03:00.4]} 6. d4 {[%clk 0:03:01.7]} 6... cxd4 {[%clk 0:03:01.3]}
7. cxd4 {[%clk 0:03:01.9]} 7... Bg4 {[%clk 0:03:00.3]} 8. e3 {[%clk 0:02:48.9]}
8... Nf6 {[%clk 0:02:54.1]} 9. Nc3 {[%clk 0:02:43.7]} 9... O-O {[%clk
0:02:53.3]} 10. Bd2 {[%clk 0:02:37.5]} 10... Ne4 {[%clk 0:02:52.3]} 11. Rc1
{[%clk 0:02:19.8]} 11... f5 {[%clk 0:02:37.9]} 12. h3 {[%clk 0:02:16.2]} 12...
Bxf3 {[%clk 0:02:35.7]} 13. Bxf3 {[%clk 0:01:59.8]} 13... e6 {[%clk 0:02:28.3]}
14. Qe2 {[%clk 0:01:50.2]} 14... Bxd4 {[%clk 0:02:13.2]} 15. Bxe4 {[%clk
0:01:30.8]} 15... dxe4 {[%clk 0:01:24.2]} 16. exd4 {[%clk 0:01:27.9]} 16... Nxd4
{[%clk 0:01:24.4]} 17. Qe3 {[%clk 0:01:16.9]} 17... Nf3+ {[%clk 0:01:24.4]} 18.
Kg2 {[%clk 0:01:17.3]} 18... Qxd2 {[%clk 0:01:14.4]} 19. Qc5 {[%clk 0:01:10.6]}
19... b6 {[%clk 0:00:52.3]} 20. Qe7 {[%clk 0:00:58.4]} 20... Rfe8 {[%clk
0:00:51.7]} 21. Qf6 {[%clk 0:00:57.3]} 21... Qd4 {[%clk 0:00:33.7]} 22. Qxd4
{[%clk 0:00:55.5]} 22... Nxd4 {[%clk 0:00:34.6]} 23. Rfd1 {[%clk 0:00:56.2]}
23... e5 {[%clk 0:00:34.7]} 24. g4 {[%clk 0:00:51.8]} 24... Rac8 {[%clk
0:00:31.8]} 25. gxf5 {[%clk 0:00:46.9]} 25... gxf5 {[%clk 0:00:32.7]} 26. Nd5
{[%clk 0:00:42.5]} 26... Kf7 {[%clk 0:00:31.9]} 27. Rc3 {[%clk 0:00:32.4]} 27...
Nf3 {[%clk 0:00:23.6]} 28. Ra3 {[%clk 0:00:15.6]} 28... Rg8+ {[%clk 0:00:13]}
29. Kh1 {[%clk 0:00:15.9]} 29... a5 {[%clk 0:00:11.9]} 30. Nxb6 {[%clk
0:00:10.9]} 30... Rcd8 {[%clk 0:00:12.1]} 31. Rc1 {[%clk 0:00:06.1]} 31... Rd2
{[%clk 0:00:08.6]} 32. Rxa5 {[%clk 0:00:06.1]} 32... Rxf2 {[%clk 0:00:07.6]} 33.
Ra7+ {[%clk 0:00:02.8]} 33... Kg6 {[%clk 0:00:05.2]} 34. Rg1+ {[%clk 0:00:01.8]}
34... Kh6 {[%clk 0:00:02.9]} 0-1

[Event "Late-Titled-Tuesday-Blitz-May-07-2024"]
[Site "Chess.com"]
[Date "2024.05.07"]
[Round "8"]
[White "lamomiajunior"]
[Black "Zq1"]
[Result "1-0"]
[WhiteElo "2766"]
[BlackElo "2612"]
[TimeControl "180+1"]
[EndTime "15:29:06 PDT"]
[Termination "lamomiajunior won on time"]

1. d4 {[%clk 0:03:00.9]} 1... Nf6 {[%clk 0:02:59.1]} 2. Nc3 {[%clk 0:03:00.5]}
2... d5 {[%clk 0:02:58.7]} 3. Bf4 {[%clk 0:03:00.8]} 3... a6 {[%clk 0:02:57.8]}
4. e3 {[%clk 0:03:00.4]} 4... c5 {[%clk 0:02:55.3]} 5. dxc5 {[%clk 0:03:01.3]}
5... Qa5 {[%clk 0:02:48.6]} 6. Nf3 {[%clk 0:02:57.5]} 6... e6 {[%clk 0:02:42.4]}
7. Bd3 {[%clk 0:02:54]} 7... Bxc5 {[%clk 0:02:41]} 8. O-O {[%clk 0:02:53]} 8...
O-O {[%clk 0:02:36.9]} 9. e4 {[%clk 0:02:53.2]} 9... dxe4 {[%clk 0:02:31.6]} 10.
Nxe4 {[%clk 0:02:54.1]} 10... Be7 {[%clk 0:02:25.6]} 11. Qe2 {[%clk 0:02:51.3]}
11... Nbd7 {[%clk 0:02:23]} 12. Rfd1 {[%clk 0:02:46.6]} 12... Nxe4 {[%clk
0:02:21.1]} 13. Bxe4 {[%clk 0:02:47.5]} 13... Nf6 {[%clk 0:02:19.8]} 14. c3
{[%clk 0:02:33.6]} 14... Nxe4 {[%clk 0:02:13.2]} 15. Qxe4 {[%clk 0:02:33.8]}
15... Qf5 {[%clk 0:02:04.4]} 16. Qxf5 {[%clk 0:02:27.6]} 16... exf5 {[%clk
0:02:04.5]} 17. Bd6 {[%clk 0:02:28.3]} 17... Bxd6 {[%clk 0:02:02.2]} 18. Rxd6
{[%clk 0:02:29.2]} 18... b5 {[%clk 0:01:57.6]} 19. Nd4 {[%clk 0:02:28.6]} 19...
g6 {[%clk 0:01:56.1]} 20. Re1 {[%clk 0:02:28.5]} 20... Bb7 {[%clk 0:01:50.2]}
21. Rd7 {[%clk 0:02:28.5]} 21... Rfe8 {[%clk 0:01:36]} 22. Rxe8+ {[%clk
0:02:19.4]} 22... Rxe8 {[%clk 0:01:34.3]} 23. f3 {[%clk 0:02:18]} 23... Bc8
{[%clk 0:01:28.4]} 24. Rc7 {[%clk 0:02:12.6]} 24... f4 {[%clk 0:01:24.3]} 25.
Kf2 {[%clk 0:02:11.7]} 25... h5 {[%clk 0:01:21.1]} 26. Ra7 {[%clk 0:02:10]}
26... h4 {[%clk 0:01:13.6]} 27. h3 {[%clk 0:02:09.3]} 27... Kf8 {[%clk
0:01:12.2]} 28. b3 {[%clk 0:02:03]} 28... g5 {[%clk 0:01:06.8]} 29. Rc7 {[%clk
0:01:51.7]} 29... Kg7 {[%clk 0:00:57.1]} 30. c4 {[%clk 0:01:47.1]} 30... bxc4
{[%clk 0:00:56.2]} 31. bxc4 {[%clk 0:01:48]} 31... Kf6 {[%clk 0:00:48.3]} 32. c5
{[%clk 0:01:47]} 32... Be6 {[%clk 0:00:46.1]} 33. Rc6 {[%clk 0:01:27.9]} 33...
Rd8 {[%clk 0:00:41.5]} 34. Nb3 {[%clk 0:01:17.2]} 34... Ke5 {[%clk 0:00:37]} 35.
Rxa6 {[%clk 0:01:17.1]} 35... Bxb3 {[%clk 0:00:31.2]} 36. axb3 {[%clk
0:01:17.3]} 36... Rd2+ {[%clk 0:00:29.4]} 37. Kg1 {[%clk 0:01:16.6]} 37... Rb2
{[%clk 0:00:26.4]} 38. Rb6 {[%clk 0:01:15.7]} 38... Kd5 {[%clk 0:00:18.1]} 39.
b4 {[%clk 0:01:13.4]} 39... Rc2 {[%clk 0:00:14.9]} 40. Rb8 {[%clk 0:01:03.5]}
40... Kd4 {[%clk 0:00:14]} 41. Rd8+ {[%clk 0:00:59.1]} 41... Ke3 {[%clk
0:00:13]} 42. Re8+ {[%clk 0:00:55.8]} 42... Kd3 {[%clk 0:00:10.2]} 43. Re5
{[%clk 0:00:54.6]} 43... f6 {[%clk 0:00:07]} 44. Re6 {[%clk 0:00:52.8]} 44...
Rc4 {[%clk 0:00:04.1]} 45. Rxf6 {[%clk 0:00:49.3]} 45... Rxb4 {[%clk 0:00:03.7]}
46. Rf5 {[%clk 0:00:49.7]} 46... Rb1+ {[%clk 0:00:03.1]} 47. Kh2 {[%clk
0:00:49.4]} 47... Ke3 {[%clk 0:00:02.8]} 48. Rxg5 {[%clk 0:00:48.8]} 48... Kf2
{[%clk 0:00:02.4]} 49. Rd5 {[%clk 0:00:47.2]} 49... Rc1 {[%clk 0:00:02.1]} 50.
Rd4 {[%clk 0:00:43.4]} 50... Ke3 {[%clk 0:00:01.6]} 51. Re4+ {[%clk 0:00:43.3]}
51... Kf2 {[%clk 0:00:01.9]} 52. Re5 {[%clk 0:00:41.8]} 52... Rg1 {[%clk
0:00:01.2]} 53. Rg5 {[%clk 0:00:42.2]} 53... Rc1 {[%clk 0:00:00.7]} 54. Rg4
{[%clk 0:00:41.9]} 1-0

[Event "Late-Titled-Tuesday-Blitz-May-07-2024"]
[Site "Chess.com"]
[Date "2024.05.07"]
[Round "8"]
[White "lluiss"]
[Black "ACollins05"]
[Result "0-1"]
[WhiteElo "2250"]
[BlackElo "2541"]
[TimeControl "180+1"]
[EndTime "15:29:10 PDT"]
[Termination "ACollins05 won by resignation"]

1. Nf3 {[%clk 0:03:00.9]} 1... b5 {[%clk 0:02:56.7]} 2. g3 {[%clk 0:02:58.2]}
2... Bb7 {[%clk 0:02:56.3]} 3. Bg2 {[%clk 0:02:58.4]} 3... Nf6 {[%clk
0:02:56.6]} 4. O-O {[%clk 0:02:58.2]} 4... e6 {[%clk 0:02:57]} 5. a4 {[%clk
0:02:57.9]} 5... b4 {[%clk 0:02:56.9]} 6. b3 {[%clk 0:02:49.3]} 6... a5 {[%clk
0:02:56.3]} 7. Bb2 {[%clk 0:02:49.1]} 7... Be7 {[%clk 0:02:56.9]} 8. d3 {[%clk
0:02:45.3]} 8... O-O {[%clk 0:02:56.9]} 9. e4 {[%clk 0:02:45.4]} 9... d5 {[%clk
0:02:56.6]} 10. exd5 {[%clk 0:02:37.6]} 10... Nxd5 {[%clk 0:02:54.9]} 11. Nbd2
{[%clk 0:02:32.7]} 11... Bf6 {[%clk 0:02:54.1]} 12. Bxf6 {[%clk 0:02:30.6]}
12... Qxf6 {[%clk 0:02:55]} 13. Nc4 {[%clk 0:02:29.7]} 13... Nd7 {[%clk
0:02:51.1]} 14. Qe1 {[%clk 0:02:27.7]} 14... N7b6 {[%clk 0:02:45.7]} 15. Nfe5
{[%clk 0:02:23.9]} 15... Rfd8 {[%clk 0:02:40.1]} 16. Nxb6 {[%clk 0:01:49.3]}
16... cxb6 {[%clk 0:02:41]} 17. Nc4 {[%clk 0:01:49.3]} 17... Rab8 {[%clk
0:02:39.9]} 18. Qe5 {[%clk 0:01:39.1]} 18... Qxe5 {[%clk 0:02:35]} 19. Nxe5
{[%clk 0:01:40]} 19... Rdc8 {[%clk 0:02:35.1]} 20. Nc4 {[%clk 0:01:39.7]} 20...
Nc3 {[%clk 0:02:24.6]} 21. Rfe1 {[%clk 0:01:34.1]} 21... Bxg2 {[%clk 0:02:21.5]}
22. Kxg2 {[%clk 0:01:34.1]} 22... Rd8 {[%clk 0:02:16.8]} 23. Re5 {[%clk
0:01:30.6]} 23... Kf8 {[%clk 0:02:15]} 24. f4 {[%clk 0:01:27.5]} 24... Rd5
{[%clk 0:02:13.2]} 25. Rae1 {[%clk 0:01:26.8]} 25... Ke7 {[%clk 0:02:10.3]} 26.
f5 {[%clk 0:01:23.4]} 26... Rxe5 {[%clk 0:02:06.8]} 27. Rxe5 {[%clk 0:01:22.7]}
27... Nd5 {[%clk 0:02:06.7]} 28. fxe6 {[%clk 0:01:17.8]} 28... fxe6 {[%clk
0:02:07.6]} 29. Re2 {[%clk 0:01:04]} 29... Rf8 {[%clk 0:01:59.2]} 30. Rf2 {[%clk
0:01:03.5]} 30... Rd8 {[%clk 0:01:50.6]} 31. Kf3 {[%clk 0:00:53.4]} 31... Kd7
{[%clk 0:01:49.6]} 32. Ne5+ {[%clk 0:00:48]} 32... Kc7 {[%clk 0:01:48.1]} 33.
Ke4 {[%clk 0:00:43.7]} 33... Nc3+ {[%clk 0:01:45.6]} 34. Ke3 {[%clk 0:00:43.2]}
34... Nd1+ {[%clk 0:01:45.4]} 35. Ke2 {[%clk 0:00:41]} 35... Nxf2 {[%clk
0:01:45.2]} 36. Kxf2 {[%clk 0:00:41.9]} 36... Rd5 {[%clk 0:01:45.1]} 37. Nf3
{[%clk 0:00:39.7]} 37... Kc6 {[%clk 0:01:43.7]} 38. d4 {[%clk 0:00:39.2]} 38...
Rf5 {[%clk 0:01:42.3]} 39. Ke3 {[%clk 0:00:39]} 39... Kd5 {[%clk 0:01:41.3]} 40.
Nd2 {[%clk 0:00:31]} 40... e5 {[%clk 0:01:38.6]} 41. dxe5 {[%clk 0:00:28.7]}
41... Rxe5+ {[%clk 0:01:39.5]} 42. Kd3 {[%clk 0:00:28.7]} 42... Rf5 {[%clk
0:01:35.1]} 43. Ke3 {[%clk 0:00:26.2]} 43... Kc5 {[%clk 0:01:32.6]} 44. Ne4+
{[%clk 0:00:24.6]} 44... Kc6 {[%clk 0:01:33]} 45. Nd2 {[%clk 0:00:23.7]} 45...
h5 {[%clk 0:01:31.7]} 46. Nc4 {[%clk 0:00:22]} 46... Rf1 {[%clk 0:01:30.1]} 47.
Ne5+ {[%clk 0:00:17.5]} 47... Kd5 {[%clk 0:01:29.6]} 48. Nd3 {[%clk 0:00:17.1]}
48... Rh1 {[%clk 0:01:27.8]} 49. h4 {[%clk 0:00:16.9]} 49... Rh2 {[%clk
0:01:26.4]} 50. Nf4+ {[%clk 0:00:13.8]} 50... Kc6 {[%clk 0:01:26.9]} 51. Ne2
{[%clk 0:00:14]} 51... Kc5 {[%clk 0:01:24.9]} 52. Kd3 {[%clk 0:00:12.6]} 52...
Rg2 {[%clk 0:01:24.5]} 53. Ke3 {[%clk 0:00:12.2]} 53... b5 {[%clk 0:01:21.6]}
54. axb5 {[%clk 0:00:11.7]} 54... Kxb5 {[%clk 0:01:21.9]} 55. Nd4+ {[%clk
0:00:11.3]} 55... Kc5 {[%clk 0:01:21.5]} 56. Ne2 {[%clk 0:00:09.8]} 56... g6
{[%clk 0:01:17]} 57. Kd3 {[%clk 0:00:08.5]} 57... Kd6 {[%clk 0:01:10.4]} 58. Ke3
{[%clk 0:00:06.3]} 58... Ke5 {[%clk 0:01:10.3]} 59. Kf3 {[%clk 0:00:06.7]} 59...
Rh2 {[%clk 0:01:09.3]} 60. Nf4 {[%clk 0:00:06.9]} 60... Kf5 {[%clk 0:01:08]} 61.
Ne2 {[%clk 0:00:06.3]} 61... Rh1 {[%clk 0:01:07]} 62. Nd4+ {[%clk 0:00:05.7]}
62... Kf6 {[%clk 0:01:07.6]} 63. Nc6 {[%clk 0:00:05.7]} 63... Rc1 {[%clk
0:01:06.1]} 64. Nxa5 {[%clk 0:00:05.3]} 64... Rxc2 {[%clk 0:01:06.5]} 65. Nc4
{[%clk 0:00:05.3]} 65... Rxc4 {[%clk 0:01:03.1]} 0-1

[Event "Late-Titled-Tuesday-Blitz-May-07-2024"]
[Site "Chess.com"]
[Date "2024.05.07"]
[Round "8"]
[White "Iuckyducky"]
[Black "APOKALIPSA13"]
[Result "1-0"]
[WhiteElo "2278"]
[BlackElo "2196"]
[TimeControl "180+1"]
[EndTime "15:29:10 PDT"]
[Termination "Iuckyducky won by checkmate"]

1. d4 {[%clk 0:03:00.9]} 1... e5 {[%clk 0:02:59.7]} 2. dxe5 {[%clk 0:03:00.4]}
2... Nc6 {[%clk 0:02:59.9]} 3. Nf3 {[%clk 0:03:00.6]} 3... Qe7 {[%clk
0:03:00.3]} 4. Bf4 {[%clk 0:03:00.3]} 4... Qb4+ {[%clk 0:03:00.2]} 5. Qd2 {[%clk
0:02:58.2]} 5... Qxb2 {[%clk 0:03:00.2]} 6. c3 {[%clk 0:02:14.4]} 6... Qxa1
{[%clk 0:02:57.9]} 7. Qc2 {[%clk 0:02:09.5]} 7... d5 {[%clk 0:02:49.1]} 8. e3
{[%clk 0:02:06.9]} 8... g6 {[%clk 0:02:40.3]} 9. Bd3 {[%clk 0:02:03.1]} 9... d4
{[%clk 0:02:33.6]} 10. Nxd4 {[%clk 0:01:52.7]} 10... Nxd4 {[%clk 0:02:25.3]} 11.
cxd4 {[%clk 0:01:52.4]} 11... Bb4+ {[%clk 0:02:22.6]} 12. Ke2 {[%clk 0:01:51.8]}
12... Bd7 {[%clk 0:02:10]} 13. Rc1 {[%clk 0:01:27.5]} 13... Ne7 {[%clk
0:01:25.3]} 14. Nd2 {[%clk 0:01:26.5]} 14... Qc3 {[%clk 0:01:16.9]} 15. Qxc3
{[%clk 0:01:09.7]} 15... Bxc3 {[%clk 0:01:17.8]} 16. Rxc3 {[%clk 0:01:10.6]}
16... Nd5 {[%clk 0:01:15.8]} 17. Rc5 {[%clk 0:01:03.6]} 17... Nxf4+ {[%clk
0:01:09.4]} 18. exf4 {[%clk 0:01:04.5]} 18... c6 {[%clk 0:01:03.6]} 19. Ne4
{[%clk 0:01:04.5]} 19... Be6 {[%clk 0:00:58.7]} 20. Nd6+ {[%clk 0:01:00.5]}
20... Ke7 {[%clk 0:00:58.3]} 21. Nxb7 {[%clk 0:00:59.7]} 21... Rab8 {[%clk
0:00:56.9]} 22. Na5 {[%clk 0:00:58.1]} 22... Rb2+ {[%clk 0:00:56.6]} 23. Ke3
{[%clk 0:00:57.7]} 23... Rc8 {[%clk 0:00:40.3]} 24. Nxc6+ {[%clk 0:00:54.1]}
24... Rxc6 {[%clk 0:00:39.5]} 25. Rxc6 {[%clk 0:00:50.7]} 25... Rxa2 {[%clk
0:00:39.4]} 26. Rc7+ {[%clk 0:00:49.9]} 26... Kd8 {[%clk 0:00:38.4]} 27. Rc5
{[%clk 0:00:39.5]} 27... a5 {[%clk 0:00:35.1]} 28. d5 {[%clk 0:00:33]} 28... Bd7
{[%clk 0:00:31.7]} 29. h3 {[%clk 0:00:20.6]} 29... h5 {[%clk 0:00:28.1]} 30. Bc4
{[%clk 0:00:14.9]} 30... Rb2 {[%clk 0:00:23]} 31. d6 {[%clk 0:00:14]} 31... a4
{[%clk 0:00:22.1]} 32. Bxf7 {[%clk 0:00:13.6]} 32... a3 {[%clk 0:00:20.5]} 33.
Ra5 {[%clk 0:00:13.9]} 33... g5 {[%clk 0:00:12.8]} 34. fxg5 {[%clk 0:00:10.9]}
34... Rb5 {[%clk 0:00:11.6]} 35. Rxb5 {[%clk 0:00:07.3]} 35... Bxb5 {[%clk
0:00:11.5]} 36. g6 {[%clk 0:00:08]} 36... Be8 {[%clk 0:00:11.3]} 37. Bxe8 {[%clk
0:00:04.7]} 37... Kxe8 {[%clk 0:00:11.4]} 38. g7 {[%clk 0:00:05.4]} 38... Kf7
{[%clk 0:00:11.6]} 39. d7 {[%clk 0:00:05.9]} 39... a2 {[%clk 0:00:11.4]} 40.
d8=Q {[%clk 0:00:02.8]} 40... a1=Q {[%clk 0:00:10.1]} 41. g8=Q# {[%clk
0:00:03.3]} 1-0